[Event "GMT Biel Chess Festival rapid"]
[Site "Biel/Bienne, Switzerland"]
[Date "????.??.??"]
[Round "5.2"]
[White "Harikrishna, Pentala"]
[Black "Wojtaszek, Radoslaw"]
[Result "1/2-1/2"]
[WhiteElo "2690"]
[BlackElo "2662"]
[PlyCount "145"]
[EventType "rapid"]
[TimeControl "15+5"]
[WhiteClock "0:00:11"]
[BlackClock "0:00:06"]

1. d4 {[%emt 0:00:00]} Nf6 {[%emt 0:00:00]} 2. c4 {[%emt 0:00:00]} e6 {[%emt 0:
00:00]} 3. Nf3 {[%emt 0:00:00]} d5 {[%emt 0:00:00]} 4. Nc3 {[%emt 0:00:00]} Bb4
{[%emt 0:00:00]} 5. Bg5 {[%emt 0:00:00]} dxc4 {[%emt 0:00:00]} 6. Qa4+ {
[%emt 0:00:00]} Nc6 {[%emt 0:00:00]} 7. a3 {[%emt 0:00:00]} Bxc3+ {[%emt 0:00:
00]} 8. bxc3 {[%emt 0:00:00]} Qd5 {[%emt 0:00:00]} 9. Bxf6 {[%emt 0:00:00]}
gxf6 {[%emt 0:00:00]} 10. e3 {[%emt 0:00:00]} b5 {[%emt 0:00:00]} 11. Qc2 {
[%emt 0:00:00]} a6 {[%emt 0:00:00]} 12. e4 {[%emt 0:00:00]} Qd6 {[%emt 0:00:00]
} 13. g3 {[%emt 0:00:00]} Bb7 {[%emt 0:00:00]} 14. Bg2 {[%emt 0:00:00]} e5 {
[%emt 0:00:00]} 15. Rd1 {[%emt 0:00:00]} Qxa3 {[%emt 0:00:00]} 16. O-O {
[%emt 0:00:00]} O-O-O {[%emt 0:00:00]} 17. Ra1 {[%emt 0:00:00]} Qb3 {[%emt 0:
00:00]} 18. Qc1 {[%emt 0:00:00]} b4 {[%emt 0:00:00]} 19. d5 {[%emt 0:00:00]}
Na7 {[%emt 0:00:00]} 20. cxb4 {[%emt 0:00:00]} Nb5 {[%emt 0:00:00]} 21. Rb1 {
[%emt 0:00:00]} Qd3 {[%emt 0:00:00]} 22. Rd1 {[%emt 0:00:00]} Qxe4 {[%emt 0:00:
00]} 23. Nd2 {[%emt 0:00:00]} Qd4 {[%emt 0:00:00]} 24. Ne4 {[%emt 0:00:00]} Qb6
{[%emt 0:00:00]} 25. Nc5 {[%emt 0:00:00]} Nd4 {[%emt 0:00:00]} 26. Qxc4 {
[%emt 0:00:00]} Qb5 {[%emt 0:00:00]} 27. Rxd4 {[%emt 0:00:22]} exd4 {[%emt 0:
00:00]} 28. Qxd4 {[%emt 0:00:07]} Rd6 {[%emt 0:00:00]} 29. Bf1 {[%emt 0:00:47]}
Qe8 {[%emt 0:00:00]} 30. Nxb7 {[%emt 0:00:46]} Kxb7 {[%emt 0:00:00]} 31. Rc1 {
[%emt 0:00:12]} Qa4 {[%emt 0:00:00]} 32. Ra1 {[%emt 0:00:15]} Qb3 {[%emt 0:00:
00]} 33. b5 {[%emt 0:00:07]} a5 {[%emt 0:00:12]} 34. Rxa5 {[%emt 0:00:02]} Ra8
{[%emt 0:00:01]} 35. Ra6 {[%emt 0:00:05]} Raxa6 {[%emt 0:00:10]} 36. bxa6+ {
[%emt 0:00:02]} Ka8 {[%emt 0:00:04]} 37. Qe4 {[%emt 0:00:08]} Ka7 {[%emt 0:00:
39]} 38. Qe7 {[%emt 0:00:06]} Qc2 {[%emt 0:00:01]} 39. Qxf7 {[%emt 0:00:04]}
Rb6 {[%emt 0:00:07]} 40. Qe7 {[%emt 0:00:07]} Qc1 {[%emt 0:00:59]} 41. Kg2 {
[%emt 0:00:08]} h6 {[%emt 0:00:40]} 42. Bd3 {[%emt 0:00:09]} Rd6 {[%emt 0:00:
02]} 43. Be2 {[%emt 0:00:12]} Qc5 {[%emt 0:00:03]} 44. Bf3 {[%emt 0:00:04]}
Kxa6 {[%emt 0:00:08]} 45. Qf8 {[%emt 0:00:07]} h5 {[%emt 0:00:08]} 46. Qa8+ {
[%emt 0:00:02]} Kb6 {[%emt 0:00:03]} 47. Qb8+ {[%emt 0:00:05]} Ka6 {[%emt 0:00:
04]} 48. Be2+ {[%emt 0:00:08]} Ka5 {[%emt 0:00:01]} 49. Qa8+ {[%emt 0:00:02]}
Kb4 {[%emt 0:00:01]} 50. Bf3 {[%emt 0:00:03]} Rb6 {[%emt 0:00:19]} 51. Bxh5 {
[%emt 0:00:05]} Kc3 {[%emt 0:00:02]} 52. Qa1+ {[%emt 0:00:08]} Rb2 {[%emt 0:00:
01]} 53. Qe1+ {[%emt 0:00:03]} Rd2 {[%emt 0:00:21]} 54. Bf3 {[%emt 0:00:05]}
Qd4 {[%emt 0:00:03]} 55. h4 {[%emt 0:00:08]} f5 {[%emt 0:00:03]} 56. h5 {
[%emt 0:00:04]} f4 {[%emt 0:00:01]} 57. Qa1+ {[%emt 0:00:05]} Rb2 {[%emt 0:00:
08]} 58. Qc1+ {[%emt 0:00:05]} Kb3 {[%emt 0:00:02]} 59. Qd1+ {[%emt 0:00:09]}
Qxd1 {[%emt 0:00:05]} 60. Bxd1+ {[%emt 0:00:01]} Kc4 {[%emt 0:00:01]} 61. Bf3 {
[%emt 0:00:04]} fxg3 {[%emt 0:00:07]} 62. Kxg3 {[%emt 0:00:03]} Kd4 {[%emt 0:
00:05]} 63. Kf4 {[%emt 0:00:12]} Rxf2 {[%emt 0:00:02]} 64. h6 {[%emt 0:00:01]}
Rh2 {[%emt 0:00:10]} 65. Kg5 {[%emt 0:00:01]} Ke5 {[%emt 0:00:11]} 66. Bh5 {
[%emt 0:00:04]} Rg2+ {[%emt 0:00:01]} 67. Bg4 {[%emt 0:00:01]} Rh2 {[%emt 0:00:
01]} 68. Bf3 {[%emt 0:00:10]} Rh3 {[%emt 0:00:11]} 69. Bh5 {[%emt 0:00:04]} Ra3
{[%emt 0:00:29]} 70. h7 {[%emt 0:00:04]} Ra8 {[%emt 0:00:01]} 71. Kh6 {[%emt 0:
00:13]} Rh8 {[%emt 0:00:15]} 72. Kg7 {[%emt 0:00:09]} Rxh7+ {[%emt 0:00:02]}
73. Kxh7 {[%emt 0:00:03]} 1/2-1/2

[Event "GMT Biel Chess Festival rapid"]
[Site "Biel/Bienne, Switzerland"]
[Date "????.??.??"]
[Round "5.3"]
[White "Naiditsch, Arkadij"]
[Black "Édouard, Romain"]
[Result "1-0"]
[WhiteElo "2584"]
[BlackElo "2654"]
[PlyCount "51"]
[EventType "rapid"]
[TimeControl "15+5"]
[WhiteClock "0:00:33"]
[BlackClock "0:00:55"]

1. e4 {[%emt 0:00:00]} e6 {[%emt 0:00:00]} 2. d4 {[%emt 0:00:00]} d5 {[%emt 0:
00:00]} 3. Nd2 {[%emt 0:00:00]} c5 {[%emt 0:00:00]} 4. exd5 {[%emt 0:00:00]}
Qxd5 {[%emt 0:00:00]} 5. dxc5 {[%emt 0:00:00]} Bxc5 {[%emt 0:00:00]} 6. Ngf3 {
[%emt 0:00:00]} Nf6 {[%emt 0:00:00]} 7. Bc4 {[%emt 0:00:00]} Qc6 {[%emt 0:00:
00]} 8. Qe2 {[%emt 0:00:00]} a6 {[%emt 0:00:00]} 9. Nb3 {[%emt 0:00:00]} Bd6 {
[%emt 0:00:00]} 10. Nbd4 {[%emt 0:00:00]} Qc7 {[%emt 0:00:00]} 11. Bg5 {
[%emt 0:00:00]} O-O {[%emt 0:00:00]} 12. Bxf6 {[%emt 0:00:00]} gxf6 {[%emt 0:
00:00]} 13. O-O-O {[%emt 0:00:00]} Rd8 {[%emt 0:00:00]} 14. Kb1 {[%emt 0:00:00]
} Bf8 {[%emt 0:00:00]} 15. h4 {[%emt 0:00:00]} Nc6 {[%emt 0:00:00]} 16. Nxc6 {
[%emt 0:00:00]} Rxd1+ {[%emt 0:00:00]} 17. Rxd1 {[%emt 0:00:00]} bxc6 {[%emt 0:
00:00]} 18. g4 {[%emt 0:00:00]} Rb8 {[%emt 0:00:00]} 19. g5 {[%emt 0:00:00]}
fxg5 {[%emt 0:00:00]} 20. Nxg5 {[%emt 0:00:00]} h6 {[%emt 0:00:00]} 21. Ne4 {
[%emt 0:00:00]} Bg7 {[%emt 0:00:00]} 22. c3 {[%emt 0:00:00]} c5 {[%emt 0:00:21]
} 23. Qe3 {[%emt 0:00:17]} Bb7 {[%emt 0:00:03]} 24. Nxc5 {[%emt 0:00:36]} Bxc3
{[%emt 0:01:21]} 25. Qxc3 {[%emt 0:00:21]} Qxc5 {[%emt 0:00:02]} 26. Qg3+ {
[%emt 0:00:16]} 1-0

[Event "GMT Biel Chess Festival rapid"]
[Site "Biel/Bienne, Switzerland"]
[Date "????.??.??"]
[Round "5.4"]
[White "Adams, Michael"]
[Black "Anton Guijarro, David"]
[Result "1/2-1/2"]
[WhiteElo "2689"]
[BlackElo "2718"]
[PlyCount "43"]
[EventType "rapid"]
[TimeControl "15+5"]
[WhiteClock "0:05:18"]
[BlackClock "0:05:45"]

1. e4 {[%emt 0:00:00]} e5 {[%emt 0:00:00]} 2. Nf3 {[%emt 0:00:00]} Nc6 {
[%emt 0:00:00]} 3. Bb5 {[%emt 0:00:00]} a6 {[%emt 0:00:00]} 4. Ba4 {[%emt 0:00:
00]} Nf6 {[%emt 0:00:00]} 5. d3 {[%emt 0:00:00]} Bc5 {[%emt 0:00:00]} 6. c3 {
[%emt 0:00:00]} d6 {[%emt 0:00:00]} 7. Bg5 {[%emt 0:00:00]} Ba7 {[%emt 0:00:00]
} 8. Nbd2 {[%emt 0:00:00]} h6 {[%emt 0:00:00]} 9. Bh4 {[%emt 0:00:00]} g5 {
[%emt 0:00:00]} 10. Bg3 {[%emt 0:00:00]} h5 {[%emt 0:00:00]} 11. h4 {[%emt 0:
00:00]} g4 {[%emt 0:00:00]} 12. Nh2 {[%emt 0:00:00]} Bd7 {[%emt 0:00:00]} 13.
Nhf1 {[%emt 0:00:00]} Ne7 {[%emt 0:00:00]} 14. Ne3 {[%emt 0:00:00]} Bxa4 {
[%emt 0:00:00]} 15. Qxa4+ {[%emt 0:00:00]} Qd7 {[%emt 0:00:00]} 16. Qxd7+ {
[%emt 0:00:00]} Nxd7 {[%emt 0:00:00]} 17. Ke2 {[%emt 0:00:00]} O-O {[%emt 0:00:
00]} 18. Raf1 {[%emt 0:00:00]} Bxe3 {[%emt 0:00:00]} 19. fxe3 {[%emt 0:00:00]}
Kg7 {[%emt 0:00:00]} 20. a4 {[%emt 0:00:00]} a5 {[%emt 0:00:00]} 21. Ra1 {
[%emt 0:00:00]} f6 {[%emt 0:00:00]} 22. Rhf1 {[%emt 0:00:00]} 1/2-1/2

[Event "GMT Biel Chess Festival rapid"]
[Site "Biel/Bienne, Switzerland"]
[Date "????.??.??"]
[Round "6.2"]
[White "Anton Guijarro, David"]
[Black "Naiditsch, Arkadij"]
[Result "1/2-1/2"]
[WhiteElo "2718"]
[BlackElo "2584"]
[PlyCount "48"]
[EventType "rapid"]
[TimeControl "15+5"]
[WhiteClock "0:03:31"]
[BlackClock "0:01:47"]

1. Nf3 {[%emt 0:00:00]} d5 {[%emt 0:00:00]} 2. b3 {[%emt 0:00:00]} Nf6 {
[%emt 0:00:00]} 3. Bb2 {[%emt 0:00:00]} c5 {[%emt 0:00:00]} 4. e3 {[%emt 0:00:
00]} Nc6 {[%emt 0:00:00]} 5. Bb5 {[%emt 0:00:00]} Bd7 {[%emt 0:00:00]} 6. O-O {
[%emt 0:00:00]} e6 {[%emt 0:00:00]} 7. c4 {[%emt 0:00:00]} dxc4 {[%emt 0:00:00]
} 8. bxc4 {[%emt 0:00:00]} Bd6 {[%emt 0:00:00]} 9. d3 {[%emt 0:00:00]} a6 {
[%emt 0:00:00]} 10. Ba4 {[%emt 0:00:00]} Rb8 {[%emt 0:00:00]} 11. Nc3 {[%emt 0:
00:00]} O-O {[%emt 0:00:00]} 12. Rb1 {[%emt 0:00:00]} Qc7 {[%emt 0:00:00]} 13.
h3 {[%emt 0:00:00]} Rfd8 {[%emt 0:00:00]} 14. Qe2 {[%emt 0:00:00]} Nb4 {
[%emt 0:00:00]} 15. Bxd7 {[%emt 0:00:00]} Rxd7 {[%emt 0:00:00]} 16. Rfd1 {
[%emt 0:00:00]} b5 {[%emt 0:00:00]} 17. cxb5 {[%emt 0:00:00]} axb5 {[%emt 0:00:
00]} 18. a4 {[%emt 0:00:00]} bxa4 {[%emt 0:00:00]} 19. Nxa4 {[%emt 0:00:00]}
Nfd5 {[%emt 0:00:00]} 20. Nc3 {[%emt 0:00:00]} Nxc3 {[%emt 0:00:00]} 21. Bxc3 {
[%emt 0:00:00]} Rdd8 {[%emt 0:00:00]} 22. Rbc1 {[%emt 0:00:00]} Qb7 {[%emt 0:
00:00]} 23. d4 {[%emt 0:00:12]} cxd4 {[%emt 0:00:00]} 24. Bxb4 {[%emt 0:00:16]}
Bxb4 {[%emt 0:00:00]} 1/2-1/2

[Event "GMT Biel Chess Festival rapid"]
[Site "Biel/Bienne, Switzerland"]
[Date "????.??.??"]
[Round "6.3"]
[White "Édouard, Romain"]
[Black "Harikrishna, Pentala"]
[Result "0-1"]
[WhiteElo "2654"]
[BlackElo "2690"]
[PlyCount "54"]
[EventType "rapid"]
[TimeControl "15+5"]
[WhiteClock "0:03:27"]
[BlackClock "0:03:16"]

1. d4 {[%emt 0:00:00]} d5 {[%emt 0:00:00]} 2. c4 {[%emt 0:00:00]} dxc4 {
[%emt 0:00:00]} 3. e3 {[%emt 0:00:00]} Nf6 {[%emt 0:00:00]} 4. Bxc4 {[%emt 0:
00:00]} e6 {[%emt 0:00:00]} 5. Nf3 {[%emt 0:00:00]} a6 {[%emt 0:00:00]} 6. O-O
{[%emt 0:00:00]} c5 {[%emt 0:00:00]} 7. dxc5 {[%emt 0:00:00]} Qxd1 {[%emt 0:00:
00]} 8. Rxd1 {[%emt 0:00:00]} Bxc5 {[%emt 0:00:00]} 9. Be2 {[%emt 0:00:00]} O-O
{[%emt 0:00:00]} 10. Nbd2 {[%emt 0:00:00]} Rd8 {[%emt 0:00:00]} 11. b3 {
[%emt 0:00:00]} Bd7 {[%emt 0:00:00]} 12. Nc4 {[%emt 0:00:00]} Nc6 {[%emt 0:00:
00]} 13. Bb2 {[%emt 0:00:00]} Be8 {[%emt 0:00:00]} 14. Kf1 {[%emt 0:00:00]} Nd5
{[%emt 0:00:00]} 15. Rac1 {[%emt 0:00:00]} Be7 {[%emt 0:00:00]} 16. g3 {
[%emt 0:00:00]} Rac8 {[%emt 0:00:00]} 17. Nd4 {[%emt 0:00:00]} Ncb4 {[%emt 0:
00:00]} 18. a3 {[%emt 0:00:00]} Na2 {[%emt 0:00:00]} 19. Rc2 {[%emt 0:00:00]}
b5 {[%emt 0:00:00]} 20. Ra1 {[%emt 0:00:00]} bxc4 {[%emt 0:00:00]} 21. Bxc4 {
[%emt 0:00:00]} Nb6 {[%emt 0:00:00]} 22. Rxa2 {[%emt 0:00:00]} Nxc4 {[%emt 0:
00:00]} 23. bxc4 {[%emt 0:00:00]} Ba4 {[%emt 0:00:00]} 24. Rc3 {[%emt 0:00:00]}
e5 {[%emt 0:00:00]} 25. Nf5 {[%emt 0:00:00]} Bf8 {[%emt 0:00:00]} 26. Bc1 {
[%emt 0:00:00]} g6 {[%emt 0:00:00]} 27. Nh4 {[%emt 0:00:00]} e4 {[%emt 0:00:00]
} 0-1

[Event "GMT Biel Chess Festival rapid"]
[Site "Biel/Bienne, Switzerland"]
[Date "????.??.??"]
[Round "6.4"]
[White "Wojtaszek, Radoslaw"]
[Black "Keymer, Vincent"]
[Result "1-0"]
[WhiteElo "2662"]
[BlackElo "2487"]
[PlyCount "63"]
[EventType "rapid"]
[TimeControl "15+5"]
[WhiteClock "0:00:08"]
[BlackClock "0:04:46"]

1. c4 {[%emt 0:00:00]} e6 {[%emt 0:00:00]} 2. Nc3 {[%emt 0:00:00]} Nf6 {
[%emt 0:00:00]} 3. e4 {[%emt 0:00:00]} d5 {[%emt 0:00:00]} 4. cxd5 {[%emt 0:00:
00]} exd5 {[%emt 0:00:00]} 5. e5 {[%emt 0:00:00]} Ne4 {[%emt 0:00:00]} 6. Nf3 {
[%emt 0:00:00]} Bf5 {[%emt 0:00:00]} 7. d3 {[%emt 0:00:00]} Nxc3 {[%emt 0:00:
00]} 8. bxc3 {[%emt 0:00:00]} c5 {[%emt 0:00:00]} 9. d4 {[%emt 0:00:00]} c4 {
[%emt 0:00:00]} 10. a4 {[%emt 0:00:00]} Nc6 {[%emt 0:00:00]} 11. Be2 {[%emt 0:
00:00]} Be7 {[%emt 0:00:00]} 12. O-O {[%emt 0:00:00]} O-O {[%emt 0:00:00]} 13.
Ne1 {[%emt 0:00:00]} f6 {[%emt 0:00:00]} 14. exf6 {[%emt 0:00:00]} Bxf6 {
[%emt 0:00:00]} 15. Nc2 {[%emt 0:00:00]} Qd7 {[%emt 0:00:00]} 16. Ne3 {[%emt 0:
00:00]} Be6 {[%emt 0:00:00]} 17. Ba3 {[%emt 0:00:00]} Rfe8 {[%emt 0:00:00]} 18.
Ng4 {[%emt 0:00:00]} Be7 {[%emt 0:00:00]} 19. Bxe7 {[%emt 0:00:00]} Qxe7 {
[%emt 0:00:00]} 20. Bf3 {[%emt 0:00:00]} Bxg4 {[%emt 0:00:00]} 21. Bxg4 {
[%emt 0:00:00]} Qd6 {[%emt 0:00:00]} 22. Rb1 {[%emt 0:00:00]} Rab8 {[%emt 0:00:
00]} 23. Bf3 {[%emt 0:00:00]} a6 {[%emt 0:00:00]} 24. Rb6 {[%emt 0:00:00]} Re7
{[%emt 0:00:00]} 25. Qb1 {[%emt 0:00:00]} Qd7 {[%emt 0:00:00]} 26. Qc1 {
[%emt 0:00:00]} Qd8 {[%emt 0:00:02]} 27. Qb2 {[%emt 0:00:00]} Qd7 {[%emt 0:01:
58]} 28. Qa3 {[%emt 0:00:00]} Rd8 {[%emt 0:00:19]} 29. h3 {[%emt 0:00:00]} Kf8
{[%emt 0:00:13]} 30. Rfb1 {[%emt 0:00:00]} Na5 {[%emt 0:00:05]} 31. Re1 {
[%emt 0:00:00]} Nc6 {[%emt 0:00:05]} 32. Bxd5 {[%emt 0:00:00]} 1-0

[Event "GMT Biel Chess Festival rapid"]
[Site "Biel/Bienne, Switzerland"]
[Date "????.??.??"]
[Round "7.1"]
[White "Studer, Noël"]
[Black "Wojtaszek, Radoslaw"]
[Result "0-1"]
[WhiteElo "2437"]
[BlackElo "2662"]
[PlyCount "78"]
[EventType "rapid"]
[TimeControl "15+5"]
[WhiteClock "0:05:30"]
[BlackClock "0:00:08"]

1. d4 {[%emt 0:00:00]} Nf6 {[%emt 0:00:00]} 2. c4 {[%emt 0:00:00]} e6 {[%emt 0:
00:00]} 3. Nf3 {[%emt 0:00:00]} b6 {[%emt 0:00:00]} 4. g3 {[%emt 0:00:00]} Bb7
{[%emt 0:00:00]} 5. Bg2 {[%emt 0:00:00]} Bb4+ {[%emt 0:00:00]} 6. Bd2 {[%emt 0:
00:00]} a5 {[%emt 0:00:00]} 7. O-O {[%emt 0:00:00]} O-O {[%emt 0:00:00]} 8. Bf4
{[%emt 0:00:00]} Be7 {[%emt 0:00:00]} 9. Re1 {[%emt 0:00:00]} Na6 {[%emt 0:00:
00]} 10. Nc3 {[%emt 0:00:00]} Ne4 {[%emt 0:00:00]} 11. Nd2 {[%emt 0:00:00]}
Nxc3 {[%emt 0:00:00]} 12. bxc3 {[%emt 0:00:00]} Bxg2 {[%emt 0:00:00]} 13. Kxg2
{[%emt 0:00:00]} d6 {[%emt 0:00:00]} 14. e4 {[%emt 0:00:00]} Nb8 {[%emt 0:00:
00]} 15. Rb1 {[%emt 0:00:00]} Nd7 {[%emt 0:00:00]} 16. Qa4 {[%emt 0:00:00]} Qe8
{[%emt 0:00:00]} 17. Qc6 {[%emt 0:00:00]} Rc8 {[%emt 0:00:00]} 18. Rb5 {
[%emt 0:00:00]} Nb8 {[%emt 0:00:00]} 19. Qxe8 {[%emt 0:00:00]} Rfxe8 {[%emt 0:
00:00]} 20. Be3 {[%emt 0:00:00]} Nd7 {[%emt 0:00:00]} 21. a4 {[%emt 0:00:00]}
g6 {[%emt 0:00:00]} 22. h4 {[%emt 0:00:00]} h5 {[%emt 0:00:00]} 23. f3 {
[%emt 0:00:00]} Kg7 {[%emt 0:00:00]} 24. Bg5 {[%emt 0:00:00]} Bf8 {[%emt 0:00:
00]} 25. g4 {[%emt 0:00:00]} hxg4 {[%emt 0:00:00]} 26. fxg4 {[%emt 0:00:00]} e5
{[%emt 0:00:00]} 27. Nf3 {[%emt 0:00:00]} Kg8 {[%emt 0:00:00]} 28. h5 {[%emt 0:
00:00]} Bg7 {[%emt 0:00:00]} 29. Rbb1 {[%emt 0:00:00]} Re6 {[%emt 0:00:00]} 30.
Bd2 {[%emt 0:00:41]} exd4 {[%emt 0:00:00]} 31. cxd4 {[%emt 0:00:05]} Rce8 {
[%emt 0:00:00]} 32. Ng5 {[%emt 0:01:39]} R6e7 {[%emt 0:00:00]} 33. hxg6 {
[%emt 0:00:22]} fxg6 {[%emt 0:00:00]} 34. Be3 {[%emt 0:00:03]} Nf6 {[%emt 0:00:
00]} 35. c5 {[%emt 0:00:05]} Nxe4 {[%emt 0:00:00]} 36. Rec1 {[%emt 0:00:13]}
dxc5 {[%emt 0:00:00]} 37. dxc5 {[%emt 0:00:01]} Nc3 {[%emt 0:00:00]} 38. cxb6 {
[%emt 0:00:09]} Nxb1 {[%emt 0:00:00]} 39. bxc7 {[%emt 0:00:04]} Nc3 {[%emt 0:
00:00]} 0-1

[Event "GMT Biel Chess Festival rapid"]
[Site "Biel/Bienne, Switzerland"]
[Date "????.??.??"]
[Round "7.2"]
[White "Keymer, Vincent"]
[Black "Édouard, Romain"]
[Result "1/2-1/2"]
[WhiteElo "2487"]
[BlackElo "2654"]
[PlyCount "71"]
[EventType "rapid"]
[TimeControl "15+5"]
[WhiteClock "0:01:41"]
[BlackClock "0:00:09"]

1. Nf3 {[%emt 0:00:00]} c5 {[%emt 0:00:00]} 2. c4 {[%emt 0:00:00]} Nc6 {
[%emt 0:00:00]} 3. Nc3 {[%emt 0:00:00]} Nf6 {[%emt 0:00:00]} 4. g3 {[%emt 0:00:
00]} e6 {[%emt 0:00:00]} 5. Bg2 {[%emt 0:00:00]} d5 {[%emt 0:00:00]} 6. cxd5 {
[%emt 0:00:00]} exd5 {[%emt 0:00:00]} 7. d4 {[%emt 0:00:00]} Be7 {[%emt 0:00:
00]} 8. O-O {[%emt 0:00:00]} O-O {[%emt 0:00:00]} 9. Be3 {[%emt 0:00:00]} c4 {
[%emt 0:00:00]} 10. Ne5 {[%emt 0:00:00]} Be6 {[%emt 0:00:00]} 11. Nxc6 {
[%emt 0:00:00]} bxc6 {[%emt 0:00:00]} 12. b3 {[%emt 0:00:00]} cxb3 {[%emt 0:00:
00]} 13. axb3 {[%emt 0:00:00]} Qb6 {[%emt 0:00:00]} 14. Na4 {[%emt 0:00:00]}
Qb5 {[%emt 0:00:00]} 15. Nc3 {[%emt 0:00:00]} Qb4 {[%emt 0:00:00]} 16. Qc2 {
[%emt 0:00:00]} Rfb8 {[%emt 0:00:00]} 17. Rfb1 {[%emt 0:00:00]} g6 {[%emt 0:00:
00]} 18. Ra4 {[%emt 0:00:00]} Bf5 {[%emt 0:00:00]} 19. Qc1 {[%emt 0:00:00]} Qb7
{[%emt 0:00:00]} 20. Rb2 {[%emt 0:00:00]} a5 {[%emt 0:00:00]} 21. Bf4 {[%emt 0:
00:00]} Rc8 {[%emt 0:00:00]} 22. Bg5 {[%emt 0:00:00]} Ne4 {[%emt 0:00:00]} 23.
Nxe4 {[%emt 0:00:00]} dxe4 {[%emt 0:00:00]} 24. Bxe7 {[%emt 0:00:00]} Qxe7 {
[%emt 0:00:00]} 25. Rba2 {[%emt 0:00:00]} c5 {[%emt 0:00:00]} 26. d5 {[%emt 0:
00:00]} Rab8 {[%emt 0:00:00]} 27. Qc3 {[%emt 0:00:00]} c4 {[%emt 0:00:00]} 28.
bxc4 {[%emt 0:00:00]} Rb1+ {[%emt 0:00:00]} 29. Bf1 {[%emt 0:00:00]} Bh3 {
[%emt 0:00:00]} 30. Ra1 {[%emt 0:00:00]} Rcb8 {[%emt 0:00:00]} 31. Rxa5 {
[%emt 0:00:54]} Qd8 {[%emt 0:00:15]} 32. Rb5 {[%emt 0:00:19]} R1xb5 {[%emt 0:
00:48]} 33. cxb5 {[%emt 0:00:22]} Bxf1 {[%emt 0:00:02]} 34. Kxf1 {[%emt 0:00:
46]} Qxd5 {[%emt 0:00:05]} 35. Qc6 {[%emt 0:00:40]} Rxb5 {[%emt 0:00:19]} 36.
Qxd5 {[%emt 0:00:05]} 1/2-1/2

[Event "GMT Biel Chess Festival rapid"]
[Site "Biel/Bienne, Switzerland"]
[Date "????.??.??"]
[Round "7.3"]
[White "Harikrishna, Pentala"]
[Black "Anton Guijarro, David"]
[Result "1/2-1/2"]
[WhiteElo "2690"]
[BlackElo "2718"]
[PlyCount "85"]
[EventType "rapid"]
[TimeControl "15+5"]
[WhiteClock "0:00:13"]
[BlackClock "0:00:24"]

1. d4 {[%emt 0:00:00]} d5 {[%emt 0:00:00]} 2. c4 {[%emt 0:00:00]} dxc4 {
[%emt 0:00:00]} 3. Nf3 {[%emt 0:00:00]} Nf6 {[%emt 0:00:00]} 4. e3 {[%emt 0:00:
00]} e6 {[%emt 0:00:00]} 5. Bxc4 {[%emt 0:00:00]} c5 {[%emt 0:00:00]} 6. O-O {
[%emt 0:00:00]} a6 {[%emt 0:00:00]} 7. dxc5 {[%emt 0:00:00]} Bxc5 {[%emt 0:00:
00]} 8. Qxd8+ {[%emt 0:00:00]} Kxd8 {[%emt 0:00:00]} 9. Nc3 {[%emt 0:00:00]} b5
{[%emt 0:00:00]} 10. Be2 {[%emt 0:00:00]} Bb7 {[%emt 0:00:00]} 11. Nd2 {
[%emt 0:00:00]} Ke7 {[%emt 0:00:00]} 12. Nb3 {[%emt 0:00:00]} Bd6 {[%emt 0:00:
00]} 13. Na5 {[%emt 0:00:00]} Ra7 {[%emt 0:00:00]} 14. Nxb7 {[%emt 0:00:00]}
Rxb7 {[%emt 0:00:00]} 15. Bd2 {[%emt 0:00:00]} Rd8 {[%emt 0:00:00]} 16. Rfd1 {
[%emt 0:00:00]} Rbd7 {[%emt 0:00:00]} 17. Be1 {[%emt 0:00:00]} g5 {[%emt 0:00:
00]} 18. h3 {[%emt 0:00:00]} h5 {[%emt 0:00:00]} 19. Kf1 {[%emt 0:00:00]} Be5 {
[%emt 0:00:00]} 20. Rac1 {[%emt 0:00:00]} Rxd1 {[%emt 0:00:00]} 21. Nxd1 {
[%emt 0:00:00]} Kd7 {[%emt 0:00:00]} 22. Rc5 {[%emt 0:00:00]} Kd6 {[%emt 0:00:
00]} 23. Bb4 {[%emt 0:00:00]} Nc6 {[%emt 0:00:00]} 24. Rxb5+ {[%emt 0:00:00]}
Kd7 {[%emt 0:01:12]} 25. Rb7+ {[%emt 0:00:45]} Kc8 {[%emt 0:00:03]} 26. Rxf7 {
[%emt 0:00:15]} Nxb4 {[%emt 0:00:04]} 27. f4 {[%emt 0:00:32]} gxf4 {[%emt 0:00:
03]} 28. exf4 {[%emt 0:00:01]} Bd4 {[%emt 0:00:03]} 29. g4 {[%emt 0:00:17]}
hxg4 {[%emt 0:00:07]} 30. hxg4 {[%emt 0:00:01]} Rd7 {[%emt 0:00:43]} 31. Rxd7 {
[%emt 0:00:24]} Kxd7 {[%emt 0:00:02]} 32. a3 {[%emt 0:00:17]} Nbd5 {[%emt 0:00:
05]} 33. f5 {[%emt 0:00:01]} e5 {[%emt 0:00:29]} 34. g5 {[%emt 0:00:01]} Nh7 {
[%emt 0:00:08]} 35. g6 {[%emt 0:00:11]} Nhf6 {[%emt 0:00:01]} 36. Bc4 {[%emt 0:
00:16]} Kd6 {[%emt 0:00:03]} 37. g7 {[%emt 0:00:03]} Ne7 {[%emt 0:00:04]} 38.
Nf2 {[%emt 0:00:06]} a5 {[%emt 0:00:10]} 39. b4 {[%emt 0:00:04]} axb4 {[%emt 0:
00:03]} 40. axb4 {[%emt 0:00:01]} e4 {[%emt 0:00:07]} 41. Nxe4+ {[%emt 0:00:08]
} Nxe4 {[%emt 0:00:03]} 42. g8=Q {[%emt 0:00:01]} Nxg8 {[%emt 0:00:02]} 43.
Bxg8 {[%emt 0:00:02]} 1/2-1/2